fUSD/lending_fUSD_20250112
["ID","MTS","AMOUNT","RATE_DAILY","PERIOD"]
[348615098,1736675439207,-500.0,9.998e-05,2]
[348615100,1736675439216,-500.0,9.998e-05,2]
[348615102,1736675439225,-500.0,9.998e-05,2]
[348615104,1736675439234,-500.0,9.998e-05,2]
[348615106,1736675439244,-500.0,9.998e-05,2]
[348615108,1736675439253,-503.01558867,9.998e-05,2]
[348615110,1736675439262,-1570.95,9.998e-05,2]
[348615112,1736675439271,-500.0,9.998e-05,2]
[348615114,1736675439280,-500.0,9.998e-05,2]
[348615116,1736675439290,-1000.73,9.998e-05,2]
[348615118,1736675439299,-500.0,9.998e-05,2]
[348615120,1736675439308,-500.0,9.998e-05,2]
[348615122,1736675439318,-744.98,9.998e-05,2]
[348615124,1736675439327,-500.0,9.998e-05,2]
[348615126,1736675439336,-500.0,9.998e-05,2]
[348615128,1736675439345,-500.0,9.998e-05,2]
[348615130,1736675439354,-3441.38,9.998e-05,2]
[348615131,1736675439363,-895.81,9.998e-05,2]
[348615133,1736675439373,-503.45293885,9.998e-05,2]
[348615136,1736675439382,-142.51037527,9.998e-05,2]
[348615138,1736675439398,-357.48962473,9.998e-05,2]
[348615140,1736675439407,-296.57492362,9.998e-05,2]
[348615142,1736675439419,-203.42507638,9.998e-05,2]
[348615144,1736675439428,-500.0,9.998e-05,2]
[348615147,1736675439437,-500.0,9.998e-05,2]
[348615149,1736675439447,-1289.11,9.998e-05,2]
[348615151,1736675439455,-4.26492362,9.998e-05,2]
[348615154,1736675439467,-644.18507638,9.998e-05,2]
[348615156,1736675439476,-504.17810162,9.998e-05,2]
[348615158,1736675439486,-503.83702249,9.998e-05,2]
[348615160,1736675439495,-534.99,9.998e-05,2]
[348615162,1736675439505,-2914.41,9.998e-05,2]
[348615164,1736675439514,-503.8741479,9.998e-05,2]
[348615165,1736675439523,-1667.32,9.998e-05,2]
[348615167,1736675439532,-500.0,9.998e-05,2]
[348615169,1736675439541,-778.39,9.998e-05,2]
[348615171,1736675439550,-500.0,9.998e-05,2]
[348615173,1736675439559,-500.0,9.998e-05,2]
[348615175,1736675439568,-928.94,9.998e-05,2]
[348615177,1736675439578,-9546.66,9.998e-05,2]
[348615179,1736675439587,-500.0,9.998e-05,2]
[348615181,1736675439597,-500.0,9.998e-05,2]
[348615183,1736675439606,-500.0,9.998e-05,2]
[348615185,1736675439615,-642.0362101,9.998e-05,2]
[348615187,1736675439624,-1296.36,9.998e-05,2]
[348615189,1736675439633,-500.0,9.998e-05,2]
[348615191,1736675439641,-500.0,9.998e-05,2]
[348615193,1736675439650,-270.76930856,9.998e-05,2]
[348615195,1736675439659,-500.0,9.998e-05,2]
[348615197,1736675439668,-500.0,9.998e-05,2]
[348615199,1736675439677,-500.0,9.998e-05,2]
[348615201,1736675439686,-242.44643237,9.998e-05,2]
[348615203,1736675439696,-500.0,9.998e-05,2]
[348615205,1736675439705,-757.47,9.998e-05,2]
[348615207,1736675439714,-1007.59,9.998e-05,2]
[348615209,1736675439723,-2486.91,9.998e-05,2]
[348615211,1736675439732,-500.0,9.998e-05,2]
[348615213,1736675439741,-500.0,9.998e-05,2]
[348615215,1736675439750,-500.0,9.998e-05,2]
[348615217,1736675439759,-500.0,9.998e-05,2]
[348615219,1736675439768,-500.0,9.998e-05,2]
[348615221,1736675439777,-1206.36,9.998e-05,2]
[348615223,1736675439786,-567.35,9.998e-05,2]
[348615225,1736675439796,-500.0,9.998e-05,2]
[348615227,1736675439805,-1309.81,9.998e-05,2]
[348615229,1736675439814,-500.0,9.998e-05,2]
[348615231,1736675439823,-977.02,9.998e-05,2]
[348615233,1736675439833,-502.24599228,9.998e-05,2]
[348615235,1736675439842,-500.0,9.998e-05,2]
[348615237,1736675439851,-4765.11,9.998e-05,2]
[348615239,1736675439862,-634.32,9.998e-05,2]
[348615241,1736675439872,-500.0,9.998e-05,2]
[348615243,1736675439881,-983.0,9.998e-05,2]
[348615245,1736675439891,-500.0,9.998e-05,2]
[348615247,1736675439900,-6835.52,9.998e-05,2]
[348615249,1736675439911,-1717.86,9.998e-05,2]
[348615251,1736675439919,-1431.82,9.998e-05,2]
[348615253,1736675439929,-500.0,9.998e-05,2]
[348615255,1736675439939,-551.78,9.998e-05,2]
[348615257,1736675439948,-499.78697576,9.998e-05,2]
[348615259,1736675439957,-500.0,9.998e-05,2]
[348615261,1736675439966,-1701.8,9.998e-05,2]
[348615263,1736675439975,-500.0,9.998e-05,2]
[348615265,1736675439984,-500.0,9.998e-05,2]
[348615267,1736675439994,-500.0,9.998e-05,2]
[348615269,1736675440003,-500.0,9.998e-05,2]
[348615271,1736675440012,-500.0,9.998e-05,2]
[348615273,1736675440021,-1027.36,9.998e-05,2]
[348615275,1736675440031,-1652.74,9.998e-05,2]
[348615277,1736675440040,-610.49,9.998e-05,2]
[348615279,1736675440049,-500.0,9.998e-05,2]
[348615281,1736675440058,-500.0,9.998e-05,2]
[348615282,1736675440067,-500.0,9.998e-05,2]
[348615284,1736675440076,-502.40091197,9.998e-05,2]
[348615286,1736675440087,-504.19058219,9.998e-05,2]
[348615288,1736675440096,-3271.82,9.998e-05,2]
[348615291,1736675440106,-500.0,9.998e-05,2]
[348615293,1736675440115,-500.3,9.998e-05,2]
[348615295,1736675440126,-500.0,9.998e-05,2]
[348615297,1736675440135,-500.0,9.998e-05,2]
[348615298,1736675440144,-1562.71,9.998e-05,2]
[348615300,1736675440153,-729.76,9.998e-05,2]
[348615303,1736675440162,-500.0,9.998e-05,2]
[348615305,1736675440172,-500.0,9.998e-05,2]
[348615308,1736675440181,-315.21833998,9.998e-05,2]
[348615310,1736675440190,-563.16,9.998e-05,2]
[348615311,1736675440199,-791.55,9.998e-05,2]
[348615313,1736675440209,-500.0,9.998e-05,2]
[348615316,1736675440218,-500.0,9.998e-05,2]
[348615318,1736675440227,-503.08002305,9.998e-05,2]
[348615320,1736675440236,-635.37,9.998e-05,2]
[348615321,1736675440245,-511.62455065,9.998e-05,2]
[348615323,1736675440254,-500.0,9.998e-05,2]
[348615325,1736675440263,-1051.62,9.998e-05,2]
[348615327,1736675440272,-500.0,9.998e-05,2]
[348615329,1736675440281,-500.0,9.998e-05,2]
[348615331,1736675440290,-500.0,9.998e-05,2]
[348615333,1736675440299,-3343.07,9.998e-05,2]
[348615335,1736675440308,-502.63762665,9.998e-05,2]
[348615337,1736675440317,-500.0,9.998e-05,2]
[348615339,1736675440326,-1000.0,9.998e-05,2]
[348615341,1736675440337,-1133.24,9.998e-05,2]
[348615343,1736675440347,-500.0,9.998e-05,2]
[348615345,1736675440355,-500.0,9.998e-05,2]
[348615348,1736675440365,-2115.21,9.998e-05,2]
[348615350,1736675440374,-500.0,9.998e-05,2]
[348615351,1736675440383,-500.0,9.998e-05,2]
[348615353,1736675440393,-243.52500233,9.998e-05,2]
[348615356,1736675440402,-505.75373351,9.998e-05,2]
[348615358,1736675440412,-875.99,9.998e-05,2]
[348615360,1736675440422,-687.48,9.998e-05,2]
[348615362,1736675440431,-500.0,9.998e-05,2]
[348615364,1736675440440,-500.0,9.998e-05,2]
[348615366,1736675440449,-500.0,9.998e-05,2]
[348615367,1736675440458,-500.0,9.998e-05,2]
[348615369,1736675440467,-506.44098732,9.998e-05,2]
[348615371,1736675440476,-500.0,9.998e-05,2]
[348615373,1736675440485,-501.66,9.998e-05,2]
[348615376,1736675440497,-500.0,9.998e-05,2]
[348615377,1736675440506,-500.0,9.998e-05,2]
[348615379,1736675440515,-500.0,9.998e-05,2]
[348615381,1736675440524,-500.0,9.998e-05,2]
[348615383,1736675440533,-500.0,9.998e-05,2]
[348615385,1736675440542,-1013.49,9.998e-05,2]
[348615387,1736675440551,-500.0,9.998e-05,2]
[348615389,1736675440560,-1732.8,9.998e-05,2]
[348615391,1736675440569,-852.31,9.998e-05,2]
[348615393,1736675440578,-500.0,9.998e-05,2]
[348615395,1736675440588,-500.0,9.998e-05,2]
[348615397,1736675440596,-825.55,9.998e-05,2]
[348615399,1736675440606,-2066.52244516,9.998e-05,2]
[348615401,1736675440614,-1987.14421237,9.998e-05,2]
[348615403,1736675440623,-1987.14421237,9.998e-05,2]
[348615405,1736675440632,-1987.14421237,9.998e-05,2]
[348615407,1736675440641,-1987.14421237,9.998e-05,2]
[348615409,1736675440651,-1987.14421237,9.999e-05,2]
[348615411,1736675440660,-1987.14421237,9.999e-05,2]
[348615413,1736675440669,-1987.14421237,9.999e-05,2]
[348615415,1736675440678,-1987.14421237,9.999e-05,2]
[348615417,1736675440687,-1987.14421237,9.999e-05,2]
[348615419,1736675440696,-1009.61861472,9.999e-05,3]
[348615421,1736675440705,-1009.61861471,9.999e-05,3]
[348615423,1736675440714,-1009.61861472,9.999e-05,3]
[348615425,1736675440723,-1009.61861472,9.999e-05,3]
[348615426,1736675440732,-1009.61861472,9.999e-05,3]
[348615427,1736675440741,-630.554271,9.999e-05,2]
[348615428,1736675440750,-837.252969,9.999e-05,2]
[348615429,1736675440759,-155.490197,9.999e-05,2]
[348615430,1736675440768,-196.38362,9.999e-05,2]
[348615431,1736675440777,-500.0,9.999e-05,2]
[348615432,1736675440787,-500.0,9.999e-05,2]
[348615433,1736675440796,-500.0,9.999e-05,2]
[348615434,1736675440805,-1382.09,9.999e-05,2]
[348615436,1736675440814,-500.0,9.999e-05,2]
[348615437,1736675440824,-500.0,9.999e-05,2]
[348615439,1736675440835,-500.0,9.999e-05,2]
[348615441,1736675440844,-502.58721747,9.999e-05,2]
[348615443,1736675440853,-500.0,9.999e-05,2]
[348615467,1736675441064,-500.0,9.999e-05,2]
[348615470,1736675441075,-500.0,9.999e-05,2]
[348615472,1736675441085,-500.0,9.999e-05,2]
[348615474,1736675441094,-500.0,9.999e-05,2]
[348615476,1736675441103,-500.0,9.999e-05,2]
[348615478,1736675441112,-583.04,9.999e-05,2]
[348615480,1736675441122,-1109.02,9.999e-05,2]
[348615482,1736675441131,-500.0,9.999e-05,2]
[348615484,1736675441140,-500.0,9.999e-05,2]
[348615486,1736675441149,-500.0,9.999e-05,2]
[348615488,1736675441158,-500.0,9.999e-05,2]
[348615490,1736675441167,-500.0,9.999e-05,2]
[348615492,1736675441176,-500.0,9.999e-05,2]
[348615494,1736675441184,-500.0,9.999e-05,2]
[348615496,1736675441194,-1034.47,9.999e-05,2]
[348615498,1736675441202,-190.59285238,9.999e-05,2]
[348615500,1736675441212,-501.33627234,9.999e-05,2]
[348615502,1736675441221,-500.0,9.999e-05,2]
[348615504,1736675441231,-500.0,9.999e-05,2]
[348615506,1736675441240,-500.0,9.999e-05,2]
[348615508,1736675441249,-500.0,9.999e-05,2]
[348615510,1736675441258,-500.0,9.999e-05,2]
[348615512,1736675441267,-502.79720333,9.999e-05,2]
[348615514,1736675441276,-501.71796041,9.999e-05,2]
[348615516,1736675441285,-500.0,9.999e-05,2]
[348615518,1736675441294,-607.28,9.999e-05,2]
[348615520,1736675441303,-501.70947167,9.999e-05,2]
[348615522,1736675441312,-505.8999662,9.999e-05,2]
[348615524,1736675441322,-500.0,9.999e-05,2]
[348615526,1736675441331,-500.0,9.999e-05,2]
[348615528,1736675441340,-500.0,9.999e-05,2]
[348615530,1736675441349,-500.0,9.999e-05,2]
[348615532,1736675441358,-1901.15,9.999e-05,2]
[348615534,1736675441367,-500.0,9.999e-05,2]
[348615536,1736675441376,-525.4558418,9.999e-05,2]
[348615538,1736675441385,-339.76727888,9.999e-05,2]
[348615540,1736675441394,-500.0,9.999e-05,2]
[348615542,1736675441403,-500.0,9.999e-05,2]
[348615544,1736675441412,-503.36566012,9.999e-05,2]
[348615546,1736675441421,-500.0,9.999e-05,2]
[348615548,1736675441429,-500.0,9.999e-05,2]
[348615550,1736675441438,-190.26021061,9.999e-05,2]
[348615552,1736675441447,-500.0,9.999e-05,2]
[348615554,1736675441456,-500.0,9.999e-05,2]
[348615556,1736675441465,-500.0,9.999e-05,2]
[348615558,1736675441474,-502.93173685,9.999e-05,2]
[348615560,1736675441483,-500.0,9.999e-05,2]
[348615562,1736675441492,-503.21358854,9.999e-05,2]
[348615564,1736675441505,-507.39144171,9.999e-05,2]
[348615566,1736675441514,-500.0,9.999e-05,2]
[348615568,1736675441523,-507.40193631,9.999e-05,2]
[348615570,1736675441532,-839.53,9.999e-05,2]
[348615572,1736675441542,-500.0,9.999e-05,2]
[348615574,1736675441551,-519.13540174,9.999e-05,2]
[348615576,1736675441560,-500.0,9.999e-05,2]
[348615578,1736675441569,-516.36724962,9.999e-05,2]
[348615580,1736675441578,-500.0,9.999e-05,2]
[348615582,1736675441587,-1228.46,9.999e-05,2]
[348615584,1736675441596,-653.53,9.999e-05,2]
[348615586,1736675441605,-593.21,9.999e-05,2]
[348615588,1736675441615,-500.0,9.999e-05,2]
[348615590,1736675441624,-492.9,9.999e-05,2]
[348615592,1736675441633,-500.0,9.999e-05,2]
[348615594,1736675441641,-500.0,9.999e-05,2]
[348615596,1736675441650,-500.0,9.999e-05,2]
[348615598,1736675441659,-500.0,9.999e-05,2]
[348615600,1736675441668,-500.0,9.999e-05,2]
[348615601,1736675441677,-505.3823289,9.999e-05,2]
[348615604,1736675441687,-968.23,9.999e-05,2]
[348615606,1736675441696,-500.0,9.999e-05,2]
[348615607,1736675441705,-501.15151838,9.999e-05,2]
[348615609,1736675441714,-500.0,9.999e-05,2]
[348615611,1736675441723,-507.00521556,9.999e-05,2]
[348615613,1736675441731,-500.0,9.999e-05,2]
[348615615,1736675441740,-1856.78,9.999e-05,2]
[348615617,1736675441749,-500.0,9.999e-05,2]
[348615619,1736675441758,-500.0,9.999e-05,2]
[348615621,1736675441768,-500.0,9.999e-05,2]
[348615624,1736675441778,-500.0,9.999e-05,2]
[348615626,1736675441787,-500.0,9.999e-05,2]
[348615628,1736675441796,-500.0,9.999e-05,2]
[348615629,1736675441805,-500.0,9.999e-05,2]
[348615631,1736675441814,-500.0,9.999e-05,2]
[348615633,1736675441823,-340.61339904,9.999e-05,2]
[348615635,1736675441832,-500.0,9.999e-05,2]
[348615637,1736675441841,-504.48289189,9.999e-05,2]
[348615639,1736675441850,-500.0,9.999e-05,2]
[348615641,1736675441860,-500.0,9.999e-05,2]
[348615643,1736675441872,-500.0,9.999e-05,2]
[348615645,1736675441881,-500.0,9.999e-05,2]
[348615648,1736675441890,-2515.38,9.999e-05,2]
[348615649,1736675441899,-202.05115328,9.999e-05,2]
[348615651,1736675441909,-500.0,9.999e-05,2]
[348615653,1736675441918,-252.45510089,9.999e-05,2]
[348615655,1736675441927,-582.62689941,9.999e-05,2]
[348615658,1736675441937,-500.0,9.999e-05,2]
[348615659,1736675441947,-500.0,9.999e-05,2]
[348615661,1736675441955,-500.85023381,9.999e-05,2]
[348615663,1736675441965,-500.0,9.999e-05,2]
[348615665,1736675441975,-901.34,9.999e-05,2]
[348615667,1736675441984,-500.0,9.999e-05,2]
[348615670,1736675441994,-500.0,9.999e-05,2]
[348615672,1736675442003,-574.31,9.999e-05,2]
[348615674,1736675442013,-500.0,9.999e-05,2]
[348615676,1736675442022,-1945.42,9.999e-05,2]
[348615678,1736675442031,-500.0,9.999e-05,2]
[348615680,1736675442040,-500.0,9.999e-05,2]
[348615682,1736675442050,-500.0,9.999e-05,2]
[348615684,1736675442060,-798.71,9.999e-05,2]
[348615686,1736675442069,-500.0,9.999e-05,2]
[348615688,1736675442084,-500.0,9.999e-05,2]
[348615690,1736675442093,-750.09,9.999e-05,2]
[348615692,1736675442104,-500.0,9.999e-05,2]
[348615694,1736675442112,-500.0,9.999e-05,2]
[348615696,1736675442121,-500.0,9.999e-05,2]
[348615698,1736675442130,-500.0,9.999e-05,2]
[348615700,1736675442140,-500.0,9.999e-05,2]
[348615702,1736675442149,-1581.46,9.999e-05,2]
[348615704,1736675442159,-500.0,9.999e-05,2]
[348615706,1736675442167,-500.0,9.999e-05,2]
[348615708,1736675442176,-502.7078102,9.999e-05,2]
[348615710,1736675442186,-574.1,9.999e-05,2]
[348615712,1736675442197,-580.84,9.999e-05,2]
[348615714,1736675442209,-500.0,9.999e-05,2]
[348615717,1736675442219,-500.0,9.999e-05,2]
[348615719,1736675442228,-500.0,9.999e-05,2]
[348615721,1736675442237,-500.0,9.999e-05,2]
[348615722,1736675442246,-500.0,9.999e-05,2]
[348615724,1736675442255,-500.0,9.999e-05,2]
[348615726,1736675442265,-500.0,9.999e-05,2]
[348615728,1736675442274,-500.0,9.999e-05,2]
[348615730,1736675442283,-562.68,9.999e-05,2]
[348615733,1736675442293,-500.0,9.999e-05,2]
[348615735,1736675442302,-500.0,9.999e-05,2]
[348615736,1736675442311,-500.0,9.999e-05,2]
[348615738,1736675442321,-500.0,9.999e-05,2]
[348615740,1736675442331,-500.0,9.999e-05,2]
[348615743,1736675442340,-500.0,9.999e-05,2]
[348615745,1736675442349,-500.0,9.999e-05,2]
[348615747,1736675442359,-500.0,9.999e-05,2]
[348615749,1736675442369,-601.85862202,9.999e-05,2]
[348615751,1736675442378,-500.0,9.999e-05,2]
[348615753,1736675442387,-622.99,9.999e-05,2]
[348615755,1736675442397,-500.0,9.999e-05,2]
[348615757,1736675442406,-510.82,9.999e-05,2]
[348615759,1736675442415,-3834.13,9.999e-05,2]
[348615761,1736675442426,-505.81197565,9.999e-05,2]
[348615763,1736675442435,-500.0,9.999e-05,2]
[348615765,1736675442444,-500.0,9.999e-05,2]
[348615767,1736675442454,-500.0,9.999e-05,2]
[348615769,1736675442463,-177.86,9.999e-05,2]
[348615771,1736675442472,-500.0,9.999e-05,2]
[348615773,1736675442481,-500.0,9.999e-05,2]
[348615775,1736675442490,-500.0,9.999e-05,2]
[348615777,1736675442501,-699.42,9.999e-05,2]
[348615779,1736675442512,-500.0,9.999e-05,2]
[348615781,1736675442520,-500.0,9.999e-05,2]
[348615783,1736675442530,-500.0,9.999e-05,2]
[348615785,1736675442539,-500.0,9.999e-05,2]
[348615787,1736675442548,-1195.55,9.999e-05,2]
[348615789,1736675442557,-500.0,9.999e-05,2]
[348615791,1736675442566,-500.0,9.999e-05,2]
[348615793,1736675442575,-608.54,9.999e-05,2]
[348615794,1736675442584,-500.0,9.999e-05,2]
[348615796,1736675442594,-864.14,9.999e-05,2]
[348615798,1736675442603,-500.0,9.999e-05,2]
[348615801,1736675442614,-500.0,9.999e-05,2]
[348615803,1736675442623,-500.0,9.999e-05,2]
[348615805,1736675442632,-500.0,9.999e-05,2]
[348615807,1736675442641,-713.84,9.999e-05,2]
[348615808,1736675442650,-500.0,9.999e-05,2]
[348615810,1736675442660,-500.0,9.999e-05,2]
[348615812,1736675442669,-500.0,9.999e-05,2]
[348615814,1736675442678,-500.0,9.999e-05,2]
[348615816,1736675442686,-500.0,9.999e-05,2]
[348615818,1736675442697,-927.56,9.999e-05,2]
[348615820,1736675442706,-500.0,9.999e-05,2]
[348615822,1736675442715,-231.31198979,9.999e-05,2]
[348615824,1736675442725,-631.86,9.999e-05,2]
[348615826,1736675442735,-604.62,9.999e-05,2]
[348615828,1736675442744,-500.0,9.999e-05,2]
[348615830,1736675442753,-590.62,9.999e-05,2]
[348615832,1736675442762,-335.02,9.999e-05,2]
[348615835,1736675442771,-500.0,9.999e-05,2]
[348615837,1736675442781,-500.0,9.999e-05,2]
[348615838,1736675442791,-500.86353367,9.999e-05,2]
[348615840,1736675442801,-694.97,9.999e-05,2]
[348615843,1736675442810,-500.0,9.999e-05,2]
[348615845,1736675442819,-500.0,9.999e-05,2]
[348615847,1736675442829,-741.57,9.999e-05,2]
[348615849,1736675442839,-504.27544946,9.999e-05,2]
[348615851,1736675442848,-500.0,9.999e-05,2]
[348615853,1736675442857,-537.66,9.999e-05,2]
[348615855,1736675442870,-505.77845107,9.999e-05,2]
[348615857,1736675442879,-582.47,9.999e-05,2]
[348615859,1736675442889,-500.0,9.999e-05,2]
[348615861,1736675442898,-2165.13,9.999e-05,2]
[348615863,1736675442907,-735.03,9.999e-05,2]
[348615865,1736675442916,-500.0,9.999e-05,2]
[348615867,1736675442924,-500.0,9.999e-05,2]
[348615869,1736675442933,-500.0,9.999e-05,2]
[348615871,1736675442942,-500.0,9.999e-05,2]
[348615873,1736675442952,-505.73280413,9.999e-05,2]
[348615875,1736675442961,-611.65,9.999e-05,2]
[348615877,1736675442971,-524.31273499,9.999e-05,2]
[348615879,1736675442980,-504.90491456,9.999e-05,2]
[348615881,1736675442989,-506.66076774,9.999e-05,2]
[348615882,1736675442998,-500.0,9.999e-05,2]
[348615884,1736675443007,-612.96,9.999e-05,2]
[348615886,1736675443016,-500.0,9.999e-05,2]
[348615888,1736675443025,-500.0,9.999e-05,2]
[348615890,1736675443035,-580.16,9.999e-05,2]
[348615892,1736675443044,-3174.43,9.999e-05,2]
[348615893,1736675443055,-1241.34,9.999e-05,2]
[348615895,1736675443064,-500.0,9.999e-05,2]
[348615897,1736675443073,-500.0,9.999e-05,2]
[348615899,1736675443083,-500.0,9.999e-05,2]
[348615902,1736675443093,-500.0,9.999e-05,2]
[348615903,1736675443102,-500.0,9.999e-05,2]
[348615905,1736675443111,-702.91,9.999e-05,2]
[348615907,1736675443122,-520.39,9.999e-05,2]
[348615908,1736675443132,-513.81098143,9.999e-05,2]
[348615909,1736675443140,-500.0,9.999e-05,2]
[348615910,1736675443149,-500.0,9.999e-05,2]
[348615911,1736675443159,-2347.29,9.999e-05,2]
[348615912,1736675443168,-500.0,9.999e-05,2]
[348615913,1736675443177,-500.0,9.999e-05,2]
[348615914,1736675443187,-355.69101654,9.999e-05,2]
[348615915,1736675443196,-605.27353796,9.999e-05,2]
[348615916,1736675443205,-500.0,9.999e-05,2]
[348615918,1736675443214,-504.54923891,9.999e-05,2]
[348615920,1736675443223,-500.0,9.999e-05,2]
[348615922,1736675443232,-500.0,9.999e-05,2]
[348615924,1736675443241,-500.0,9.999e-05,2]
[348615925,1736675443250,-1146.78,9.999e-05,2]
[348615926,1736675443259,-425.03194397,9.999e-05,2]
[348615927,1736675443268,-500.0,9.999e-05,2]
[348615928,1736675443278,-508.21527757,9.999e-05,2]
[348615929,1736675443287,-500.0,9.999e-05,2]
[348615930,1736675443295,-730.61,9.999e-05,2]
[348615931,1736675443304,-1443.54,9.999e-05,2]
[348615932,1736675443314,-540.43,9.999e-05,2]
[348615933,1736675443323,-507.59500827,9.999e-05,2]
[348615934,1736675443332,-500.0,9.999e-05,2]
[348615936,1736675443344,-482.62071834,9.999e-05,2]
[348615937,1736675443353,-500.0,9.999e-05,2]
[348615938,1736675443362,-507.88077786,9.999e-05,2]
[348615940,1736675443371,-500.0,9.999e-05,2]
[348615942,1736675443382,-500.0,9.999e-05,2]
[348615944,1736675443391,-500.0,9.999e-05,2]
[348615946,1736675443400,-500.0,9.999e-05,2]
[348615948,1736675443409,-587.51,9.999e-05,2]
[348615950,1736675443419,-500.0,9.999e-05,2]
[348615952,1736675443428,-505.42250622,9.999e-05,2]
[348615954,1736675443437,-809.08,9.999e-05,2]
[348615956,1736675443446,-3478.75,9.999e-05,2]
[348615958,1736675443455,-564.38113611,9.999e-05,2]
[348615960,1736675443464,-643.14,9.999e-05,2]
[348615961,1736675443473,-500.0,9.999e-05,2]
[348615962,1736675443482,-500.0,9.999e-05,2]
[348615963,1736675443492,-431.38286408,9.999e-05,2]
[348615965,1736675443502,-907.47,9.999e-05,2]
[348615967,1736675443512,-500.0,9.999e-05,2]
[348615969,1736675443521,-500.0,9.999e-05,2]
[348615970,1736675443530,-500.0,9.999e-05,2]
[348615971,1736675443539,-500.0,9.999e-05,2]
[348615972,1736675443548,-500.0,9.999e-05,2]
[348615973,1736675443557,-500.0,9.999e-05,2]
[348615974,1736675443566,-500.71,9.999e-05,2]
[348615975,1736675443575,-500.0,9.999e-05,2]
[348615976,1736675443584,-500.0,9.999e-05,2]
[348615977,1736675443594,-539.74,9.999e-05,2]
[348615978,1736675443603,-500.0,9.999e-05,2]
[348615979,1736675443612,-511.19083398,9.999e-05,2]
[348615980,1736675443621,-597.91,9.999e-05,2]
[348615981,1736675443630,-1176.09,9.999e-05,2]
[348615982,1736675443639,-582.97,9.999e-05,2]
[348615983,1736675443648,-500.0,9.999e-05,2]
[348615984,1736675443657,-500.0,9.999e-05,2]
[348615985,1736675443667,-500.0,9.999e-05,2]
[348615986,1736675443676,-1054.1,9.999e-05,2]
[348615987,1736675443685,-500.0,9.999e-05,2]
[348615988,1736675443694,-500.0,9.999e-05,2]
[348615989,1736675443704,-500.0,9.999e-05,2]
[348615990,1736675443713,-934.57,9.999e-05,2]
[348615991,1736675443722,-1064.99,9.999e-05,2]
[348615992,1736675443731,-1042.36,9.999e-05,2]
[348615993,1736675443741,-1184.34,9.999e-05,2]
[348615994,1736675443751,-500.0,9.999e-05,2]
[348615995,1736675443760,-660.18,9.999e-05,2]
[348615996,1736675443769,-500.0,9.999e-05,2]
[348615997,1736675443779,-500.0,9.999e-05,2]
[348615998,1736675443788,-1136.54,9.999e-05,2]
[348615999,1736675443797,-500.0,9.999e-05,2]
[348616000,1736675443806,-500.0,9.999e-05,2]
[348616001,1736675443816,-500.0,9.999e-05,2]
[348616002,1736675443826,-553.49,9.999e-05,2]
[348616003,1736675443835,-500.0,9.999e-05,2]
[348616004,1736675443845,-500.0,9.999e-05,2]
[348616005,1736675443854,-1394.41,9.999e-05,2]
[348616006,1736675443867,-520.66,9.999e-05,2]
[348616007,1736675443876,-504.42110493,9.999e-05,2]
[348616008,1736675443886,-500.0,9.999e-05,2]
[348616009,1736675443895,-500.0,9.999e-05,2]
[348616010,1736675443904,-675.86,9.999e-05,2]
[348616011,1736675443914,-1143.98,9.999e-05,2]
[348616012,1736675443923,-520.22,9.999e-05,2]
[348616013,1736675443932,-972.47,9.999e-05,2]
[348616014,1736675443944,-502.89445788,9.999e-05,2]
[348616016,1736675443954,-500.0,9.999e-05,2]
[348616017,1736675443963,-1044.73,9.999e-05,2]
[348616018,1736675443972,-500.0,9.999e-05,2]
[348616033,1736675444140,-500.0,9.999e-05,2]
[348616035,1736675444149,-420.22812554,9.999e-05,2]
[348616037,1736675444159,-1987.14421237,9.999e-05,2]
[348616039,1736675444167,-1987.14421237,9.999e-05,2]
[348616041,1736675444176,-1987.14421237,9.999e-05,2]
[348616043,1736675444185,-1987.14421237,9.999e-05,2]
[348616045,1736675444194,-1987.14421237,9.999e-05,2]
[348616047,1736675444203,-1987.14421237,0.0001,2]
[348616049,1736675444211,-1987.14421237,0.0001,2]
[348616051,1736675444220,-1987.14421237,0.0001,2]